[Event "Titled Tuesday Blitz July 20 2021"]
[White "Wagner, Dennis"]
[Black "Nakamura, Hikaru"]
[WhiteFideId "24650684"]
[BlackFideId "2016192"]
[WhiteElo "2355"]
[BlackElo "2900"]
[Result "0-1"]
[Round "04"]
[TimeControl "180+1"]
[Date "2021.07.20"]
[WhiteClock "0:00:04"]
[BlackClock "0:00:36"]

1. e4 {[%clk 0:03:00]}  g6 {[%clk 0:02:52]} 2. d4 {[%clk 0:02:59]}  Bg7 {[%clk 0:02:50]} 3. Nc3 {[%clk 0:03:00]}  a6 {[%clk 0:02:50]} 4. Be3 {[%clk 0:02:56]}  b5 {[%clk 0:02:50]} 5. Qd2 {[%clk 0:02:56]}  Bb7 {[%clk 0:02:50]} 6. f3 {[%clk 0:02:56]}  d6 {[%clk 0:02:48]} 7. h4 {[%clk 0:02:56]}  h5 {[%clk 0:02:48]} 8. O-O-O {[%clk 0:02:56]}  e6 {[%clk 0:02:49]} 9. Kb1 {[%clk 0:02:56]}  Nd7 {[%clk 0:02:49]} 10. Nh3 {[%clk 0:02:50]}  Nb6 {[%clk 0:02:49]} 11. Bd3 {[%clk 0:02:41]}  Nf6 {[%clk 0:02:46]} 12. Ng5 {[%clk 0:02:39]}  Nfd7 {[%clk 0:02:45]} 13. Qf2 {[%clk 0:02:07]}  Qe7 {[%clk 0:02:42]} 14. g4 {[%clk 0:02:01]}  O-O-O {[%clk 0:02:32]} 15. Ne2 {[%clk 0:01:41]}  Kb8 {[%clk 0:02:24]} 16. Ng3 {[%clk 0:01:34]}  Na4 {[%clk 0:02:13]} 17. gxh5 {[%clk 0:01:30]}  gxh5 {[%clk 0:02:13]} 18. c3 {[%clk 0:01:27]}  c5 {[%clk 0:02:05]} 19. Rhg1 {[%clk 0:01:00]}  Ndb6 {[%clk 0:01:57]} 20. Bc2 {[%clk 0:00:33]}  Rc8 {[%clk 0:01:52]} 21. Bf4 {[%clk 0:00:26]}  Ka8 {[%clk 0:01:47]} 22. dxc5 {[%clk 0:00:26]}  dxc5 {[%clk 0:01:47]} 23. Bd6 {[%clk 0:00:25]}  Qe8 {[%clk 0:01:48]} 24. e5 {[%clk 0:00:17]}  Nc4 {[%clk 0:01:43]} 25. Bxa4 {[%clk 0:00:15]}  bxa4 {[%clk 0:01:44]} 26. N3e4 {[%clk 0:00:10]}  Rc6 {[%clk 0:01:30]} 27. Bxc5 {[%clk 0:00:10]}  Bxe5 {[%clk 0:01:29]} 28. Bd4 {[%clk 0:00:10]}  f6 {[%clk 0:01:25]} 29. Bxe5 {[%clk 0:00:09]}  fxe5 {[%clk 0:01:21]} 30. a3 {[%clk 0:00:09]}  Rb6 {[%clk 0:01:19]} 31. Qc5 {[%clk 0:00:04]}  Rxb2+ {[%clk 0:01:13]} 32. Ka1 {[%clk 0:00:05]}  Qc8 {[%clk 0:01:09]} 33. Qxc8+ {[%clk 0:00:04]}  Rxc8 {[%clk 0:01:09]} 34. Nxe6 {[%clk 0:00:04]}  Rb3 {[%clk 0:01:10]} 35. Nd6 {[%clk 0:00:03]}  Rxa3+ {[%clk 0:01:09]} 36. Kb1 {[%clk 0:00:03]}  Rb3+ {[%clk 0:01:08]} 37. Ka2 {[%clk 0:00:02]}  Nxd6 {[%clk 0:00:47]} 38. Rxd6 {[%clk 0:00:03]}  Rcxc3 {[%clk 0:00:47]} 39. Rg7 {[%clk 0:00:04]}  Rc2+ {[%clk 0:00:45]} 40. Ka1 {[%clk 0:00:04]}  Rxf3 {[%clk 0:00:37]} 41. Nd8 {[%clk 0:00:04]}  Rf1+ {[%clk 0:00:36]} 0-1


[Site "https://www.chess.com"]

[Event "Titled Tuesday Blitz July 20 2021"]
[White "Woodward, Andy"]
[Black "Gurevich, Dmitry"]
[WhiteFideId "30953499"]
[BlackFideId "2000407"]
[WhiteElo "2137"]
[BlackElo "2506"]
[Result "1-0"]
[Round "04"]
[TimeControl "180+1"]
[Date "2021.07.21"]
[WhiteClock "0:02:11"]
[BlackClock "0:01:59"]

1. d4 {[%clk 0:03:00]}  Nf6 {[%clk 0:02:58]} 2. c4 {[%clk 0:03:00]}  a6 {[%clk 0:02:59]} 3. Nc3 {[%clk 0:03:00]}  c5 {[%clk 0:02:59]} 4. Nf3 {[%clk 0:02:57]}  cxd4 {[%clk 0:02:58]} 5. Nxd4 {[%clk 0:02:58]}  d5 {[%clk 0:02:58]} 6. cxd5 {[%clk 0:02:56]}  Nxd5 {[%clk 0:02:57]} 7. e4 {[%clk 0:02:56]}  Nxc3 {[%clk 0:02:57]} 8. bxc3 {[%clk 0:02:57]}  e5 {[%clk 0:02:54]} 9. Nb3 {[%clk 0:02:50]}  Qxd1+ {[%clk 0:02:53]} 10. Kxd1 {[%clk 0:02:51]}  Be6 {[%clk 0:02:44]} 11. Kc2 {[%clk 0:02:48]}  Nc6 {[%clk 0:02:40]} 12. Bb2 {[%clk 0:02:48]}  Rc8 {[%clk 0:02:39]} 13. Rc1 {[%clk 0:02:47]}  g6 {[%clk 0:02:36]} 14. Kb1 {[%clk 0:02:46]}  Bh6 {[%clk 0:02:35]} 15. Rd1 {[%clk 0:02:45]}  f5 {[%clk 0:02:32]} 16. Nc5 {[%clk 0:02:45]}  Ke7 {[%clk 0:02:11]} 17. Ba3 {[%clk 0:02:42]}  Kf6 {[%clk 0:02:08]} 18. Nxe6 {[%clk 0:02:16]}  Kxe6 {[%clk 0:02:08]} 19. Bc4+ {[%clk 0:02:16]}  Kf6 {[%clk 0:02:08]} 20. Rd6+ {[%clk 0:02:16]}  Kg7 {[%clk 0:02:02]} 21. Rd7+ {[%clk 0:02:16]}  Kf6 {[%clk 0:01:59]} 22. Rf7+ {[%clk 0:02:15]}  Kg5 {[%clk 0:01:59]} 23. Bc1+ {[%clk 0:02:11]} 1-0


[Site "https://www.chess.com"]

[Event "Titled Tuesday Blitz July 20 2021"]
[White "Zakhartsov, Vladimir"]
[Black "Lagunow, Raphael"]
[WhiteFideId "4145097"]
[BlackFideId "24652644"]
[WhiteElo "2466"]
[BlackElo "2400"]
[Result "0-1"]
[Round "04"]
[TimeControl "180+1"]
[Date "2021.07.21"]
[WhiteClock "0:00:04"]
[BlackClock "0:00:16"]

1. e4 {[%clk 0:02:07]}  c5 {[%clk 0:02:57]} 2. Nf3 {[%clk 0:02:07]}  Nc6 {[%clk 0:02:57]} 3. d4 {[%clk 0:02:05]}  cxd4 {[%clk 0:02:57]} 4. Nxd4 {[%clk 0:02:06]}  Nf6 {[%clk 0:02:57]} 5. Nc3 {[%clk 0:02:06]}  e5 {[%clk 0:02:57]} 6. Ndb5 {[%clk 0:02:06]}  d6 {[%clk 0:02:57]} 7. Bg5 {[%clk 0:02:06]}  a6 {[%clk 0:02:56]} 8. Na3 {[%clk 0:02:06]}  b5 {[%clk 0:02:56]} 9. Nd5 {[%clk 0:02:05]}  Be7 {[%clk 0:02:56]} 10. Bxf6 {[%clk 0:02:06]}  Bxf6 {[%clk 0:02:57]} 11. c4 {[%clk 0:02:04]}  Nd4 {[%clk 0:02:57]} 12. cxb5 {[%clk 0:01:56]}  Be6 {[%clk 0:02:57]} 13. Bc4 {[%clk 0:01:50]}  axb5 {[%clk 0:02:55]} 14. Bxb5+ {[%clk 0:01:34]}  Kf8 {[%clk 0:02:55]} 15. Bc4 {[%clk 0:01:16]}  Qa5+ {[%clk 0:02:55]} 16. Qd2 {[%clk 0:01:10]}  Bd8 {[%clk 0:02:55]} 17. Qxa5 {[%clk 0:00:55]}  Bxa5+ {[%clk 0:02:54]} 18. Kd1 {[%clk 0:00:55]}  f5 {[%clk 0:02:19]} 19. exf5 {[%clk 0:00:31]}  Bxf5 {[%clk 0:02:09]} 20. Ne3 {[%clk 0:00:31]}  Rb8 {[%clk 0:01:53]} 21. Nxf5 {[%clk 0:00:28]}  Nxf5 {[%clk 0:01:53]} 22. Rb1 {[%clk 0:00:17]}  d5 {[%clk 0:01:28]} 23. Bb3 {[%clk 0:00:17]}  Ke7 {[%clk 0:01:22]} 24. Nc2 {[%clk 0:00:17]}  d4 {[%clk 0:01:12]} 25. g4 {[%clk 0:00:13]}  Nd6 {[%clk 0:01:07]} 26. Ke2 {[%clk 0:00:11]}  Rhf8 {[%clk 0:01:04]} 27. f3 {[%clk 0:00:10]}  Nb7 {[%clk 0:00:57]} 28. Bc4 {[%clk 0:00:08]}  Nc5 {[%clk 0:00:45]} 29. b4 {[%clk 0:00:08]}  Na4 {[%clk 0:00:45]} 30. Kf2 {[%clk 0:00:04]}  Bb6 {[%clk 0:00:37]} 31. Kg3 {[%clk 0:00:03]}  Nc3 {[%clk 0:00:28]} 32. Rbe1 {[%clk 0:00:03]}  Kd6 {[%clk 0:00:28]} 33. Bd3 {[%clk 0:00:03]}  Bc7 {[%clk 0:00:25]} 34. Na3 {[%clk 0:00:03]}  Rxb4 {[%clk 0:00:18]} 35. Nc4+ {[%clk 0:00:02]}  Rxc4 {[%clk 0:00:19]} 36. Bxc4 {[%clk 0:00:02]}  e4 {[%clk 0:00:20]} 37. fxe4 {[%clk 0:00:02]}  Kc5+ {[%clk 0:00:19]} 38. e5 {[%clk 0:00:01]}  Kxc4 {[%clk 0:00:20]} 39. Rhf1 {[%clk 0:00:01]}  Bxe5+ {[%clk 0:00:19]} 40. Kh3 {[%clk 0:00:02]}  Rxf1 {[%clk 0:00:19]} 41. Rxf1 {[%clk 0:00:02]}  d3 {[%clk 0:00:19]} 42. Rf8 {[%clk 0:00:01]}  d2 {[%clk 0:00:19]} 43. Rc8+ {[%clk 0:00:02]}  Kd3 {[%clk 0:00:19]} 44. Rd8+ {[%clk 0:00:02]}  Bd4 {[%clk 0:00:19]} 45. Rd7 {[%clk 0:00:02]}  d1=Q {[%clk 0:00:19]} 46. g5 {[%clk 0:00:03]}  Qf3+ {[%clk 0:00:19]} 47. Kh4 {[%clk 0:00:03]}  Qf4+ {[%clk 0:00:20]} 48. Kh5 {[%clk 0:00:04]}  Qxh2+ {[%clk 0:00:19]} 49. Kg4 {[%clk 0:00:04]}  Qg2+ {[%clk 0:00:19]} 50. Kf5 {[%clk 0:00:04]}  Qh3+ {[%clk 0:00:19]} 51. Kf4 {[%clk 0:00:04]}  Qxd7 {[%clk 0:00:18]} 52. Kg3 {[%clk 0:00:04]}  Be5+ {[%clk 0:00:18]} 53. Kh4 {[%clk 0:00:05]}  Ne4 {[%clk 0:00:16]} 54. g6 {[%clk 0:00:04]}  Bg3+ {[%clk 0:00:16]} 55. Kh5 {[%clk 0:00:04]}  Qh3# {[%clk 0:00:16]} 0-1


[Site "https://www.chess.com"]

[Event "Titled Tuesday Blitz July 20 2021"]
[White "Zhigalko, Sergei"]
[Black "Remizov, Yaroslav"]
[WhiteFideId "13502956"]
[BlackFideId "34134015"]
[WhiteElo "2662"]
[BlackElo "2335"]
[Result "0-1"]
[Round "04"]
[TimeControl "180+1"]
[Date "2021.07.20"]
[WhiteClock "0:00:03"]
[BlackClock "0:00:16"]

1. e4 {[%clk 0:03:00]}  c6 {[%clk 0:02:58]} 2. d4 {[%clk 0:03:00]}  d5 {[%clk 0:02:59]} 3. e5 {[%clk 0:03:01]}  c5 {[%clk 0:02:59]} 4. Nf3 {[%clk 0:03:01]}  cxd4 {[%clk 0:02:59]} 5. Qxd4 {[%clk 0:03:02]}  Nc6 {[%clk 0:02:59]} 6. Qf4 {[%clk 0:03:02]}  e6 {[%clk 0:02:59]} 7. Bd3 {[%clk 0:03:02]}  Nge7 {[%clk 0:02:59]} 8. O-O {[%clk 0:03:02]}  Ng6 {[%clk 0:02:57]} 9. Qg3 {[%clk 0:03:01]}  Nb4 {[%clk 0:02:52]} 10. Nc3 {[%clk 0:02:57]}  Nxd3 {[%clk 0:02:51]} 11. cxd3 {[%clk 0:02:58]}  Be7 {[%clk 0:02:51]} 12. Ne2 {[%clk 0:02:56]}  O-O {[%clk 0:02:47]} 13. Ned4 {[%clk 0:02:57]}  Qb6 {[%clk 0:02:39]} 14. Be3 {[%clk 0:02:36]}  Qxb2 {[%clk 0:02:35]} 15. h4 {[%clk 0:02:35]}  h5 {[%clk 0:02:10]} 16. Rfc1 {[%clk 0:02:08]}  Qa3 {[%clk 0:02:02]} 17. Nb5 {[%clk 0:02:00]}  Qa5 {[%clk 0:01:34]} 18. Nd6 {[%clk 0:01:37]}  Bd7 {[%clk 0:01:19]} 19. Nxb7 {[%clk 0:01:33]}  Qb5 {[%clk 0:01:11]} 20. Nc5 {[%clk 0:01:25]}  Rfc8 {[%clk 0:01:01]} 21. Rab1 {[%clk 0:01:11]}  Qc6 {[%clk 0:00:35]} 22. d4 {[%clk 0:00:12]}  Be8 {[%clk 0:00:23]} 23. Bg5 {[%clk 0:00:11]}  Bxc5 {[%clk 0:00:19]} 24. dxc5 {[%clk 0:00:11]}  Rab8 {[%clk 0:00:18]} 25. Rxb8 {[%clk 0:00:10]}  Rxb8 {[%clk 0:00:18]} 26. Nd4 {[%clk 0:00:07]}  Qa4 {[%clk 0:00:18]} 27. Be3 {[%clk 0:00:07]}  Qxa2 {[%clk 0:00:17]} 28. Qg5 {[%clk 0:00:06]}  Rb1 {[%clk 0:00:17]} 29. Rxb1 {[%clk 0:00:03]}  Qxb1+ {[%clk 0:00:17]} 30. Kh2 {[%clk 0:00:04]}  Qe4 {[%clk 0:00:17]} 31. Qd8 {[%clk 0:00:03]}  Qxh4+ {[%clk 0:00:17]} 32. Kg1 {[%clk 0:00:03]}  Qxd8 {[%clk 0:00:16]} 0-1


[Site "https://www.chess.com"]

[Event "Titled Tuesday Blitz July 20 2021"]
[White "Zierk, Steven"]
[Black "Kassimov, Baurzhan"]
[WhiteFideId "2034255"]
[BlackFideId "13704800"]
[WhiteElo "2494"]
[BlackElo "2234"]
[Result "1-0"]
[Round "04"]
[TimeControl "180+1"]
[Date "2021.07.21"]
[WhiteClock "0:00:12"]
[BlackClock "0:00:01"]

1. e4 {[%clk 0:02:59]}  c5 {[%clk 0:02:57]} 2. Nf3 {[%clk 0:02:59]}  d6 {[%clk 0:02:57]} 3. d4 {[%clk 0:02:59]}  cxd4 {[%clk 0:02:58]} 4. Nxd4 {[%clk 0:03:00]}  Nf6 {[%clk 0:02:58]} 5. f3 {[%clk 0:03:01]}  e6 {[%clk 0:02:56]} 6. c4 {[%clk 0:03:01]}  Be7 {[%clk 0:02:56]} 7. Nc3 {[%clk 0:03:01]}  a6 {[%clk 0:02:56]} 8. Be2 {[%clk 0:03:01]}  Qc7 {[%clk 0:02:56]} 9. O-O {[%clk 0:03:01]}  b6 {[%clk 0:02:57]} 10. Be3 {[%clk 0:03:01]}  Bb7 {[%clk 0:02:57]} 11. Rc1 {[%clk 0:03:01]}  Nbd7 {[%clk 0:02:57]} 12. b4 {[%clk 0:03:01]}  Rc8 {[%clk 0:02:55]} 13. Nb3 {[%clk 0:02:59]}  O-O {[%clk 0:02:54]} 14. Qd2 {[%clk 0:02:58]}  Qb8 {[%clk 0:02:51]} 15. Rfd1 {[%clk 0:02:57]}  Bd8 {[%clk 0:02:51]} 16. Bf4 {[%clk 0:02:57]}  Ne5 {[%clk 0:02:45]} 17. Bxe5 {[%clk 0:02:57]}  dxe5 {[%clk 0:02:46]} 18. c5 {[%clk 0:02:57]}  Nh5 {[%clk 0:02:31]} 19. Na4 {[%clk 0:02:41]}  Bc6 {[%clk 0:02:23]} 20. Nxb6 {[%clk 0:02:32]}  Bxb6 {[%clk 0:02:22]} 21. cxb6 {[%clk 0:02:33]}  Qxb6+ {[%clk 0:02:22]} 22. Kh1 {[%clk 0:02:32]}  Nf4 {[%clk 0:02:20]} 23. Bf1 {[%clk 0:02:29]}  Ba4 {[%clk 0:01:54]} 24. Rxc8 {[%clk 0:02:26]}  Rxc8 {[%clk 0:01:52]} 25. Bxa6 {[%clk 0:02:27]}  Bxb3 {[%clk 0:01:46]} 26. axb3 {[%clk 0:02:18]}  Rb8 {[%clk 0:01:41]} 27. Bc4 {[%clk 0:02:16]}  h6 {[%clk 0:01:35]} 28. b5 {[%clk 0:02:14]}  Ra8 {[%clk 0:01:29]} 29. g3 {[%clk 0:02:07]}  Ng6 {[%clk 0:01:17]} 30. Kg2 {[%clk 0:02:06]}  Qc5 {[%clk 0:01:10]} 31. Qf2 {[%clk 0:01:55]}  Qb4 {[%clk 0:01:08]} 32. h4 {[%clk 0:01:52]}  Nf8 {[%clk 0:00:51]} 33. Qd2 {[%clk 0:01:48]}  Qc5 {[%clk 0:00:47]} 34. Rc1 {[%clk 0:01:36]}  Qb6 {[%clk 0:00:37]} 35. Qf2 {[%clk 0:01:33]}  Qa5 {[%clk 0:00:37]} 36. Rd1 {[%clk 0:01:23]}  Rb8 {[%clk 0:00:30]} 37. Qb2 {[%clk 0:01:17]}  Qc7 {[%clk 0:00:29]} 38. Rd3 {[%clk 0:01:11]}  Nd7 {[%clk 0:00:28]} 39. Qd2 {[%clk 0:01:08]}  Nc5 {[%clk 0:00:24]} 40. Rd6 {[%clk 0:01:05]}  Qb7 {[%clk 0:00:17]} 41. Rc6 {[%clk 0:00:56]}  Nd7 {[%clk 0:00:13]} 42. Qd6 {[%clk 0:00:54]}  Nf6 {[%clk 0:00:08]} 43. Qxe5 {[%clk 0:00:40]}  Qa7 {[%clk 0:00:08]} 44. Ra6 {[%clk 0:00:38]}  Qb7 {[%clk 0:00:06]} 45. Qd4 {[%clk 0:00:37]}  Rc8 {[%clk 0:00:06]} 46. Ra7 {[%clk 0:00:27]}  Qb8 {[%clk 0:00:06]} 47. Ra6 {[%clk 0:00:17]}  Rd8 {[%clk 0:00:05]} 48. Qe3 {[%clk 0:00:15]}  Qe5 {[%clk 0:00:05]} 49. Ra2 {[%clk 0:00:12]}  h5 {[%clk 0:00:02]} 50. Rd2 {[%clk 0:00:12]}  Rb8 {[%clk 0:00:01]} 51. Qg5 {[%clk 0:00:12]}  Qc7 {[%clk 0:00:02]} 52. e5 {[%clk 0:00:12]}  Nd7 {[%clk 0:00:01]} 53. Qe7 {[%clk 0:00:12]} 1-0


[Site "https://www.chess.com"]

[Event "Titled Tuesday Blitz July 20 2021"]
[White "Ambartsumova, Karina"]
[Black "Tymrakiewicz, Rafal"]
[WhiteFideId "4166299"]
[BlackFideId "1108832"]
[WhiteElo "2262"]
[BlackElo "2172"]
[Result "1-0"]
[Round "05"]
[TimeControl "180+1"]
[Date "2021.07.21"]
[WhiteClock "0:00:12"]
[BlackClock "0:00:04"]

1. e4 {[%clk 0:03:00]}  Nf6 {[%clk 0:02:59]} 2. Nc3 {[%clk 0:02:59]}  d5 {[%clk 0:02:59]} 3. exd5 {[%clk 0:02:45]}  Nxd5 {[%clk 0:02:58]} 4. Nf3 {[%clk 0:02:45]}  Bg4 {[%clk 0:02:55]} 5. Be2 {[%clk 0:02:44]}  Nc6 {[%clk 0:02:49]} 6. d4 {[%clk 0:02:30]}  Nxc3 {[%clk 0:02:47]} 7. bxc3 {[%clk 0:02:29]}  e6 {[%clk 0:02:47]} 8. O-O {[%clk 0:02:21]}  Be7 {[%clk 0:02:39]} 9. Rb1 {[%clk 0:02:21]}  Rb8 {[%clk 0:02:39]} 10. Bf4 {[%clk 0:02:13]}  O-O {[%clk 0:02:38]} 11. h3 {[%clk 0:02:14]}  Bh5 {[%clk 0:02:37]} 12. Re1 {[%clk 0:01:55]}  Qd5 {[%clk 0:02:34]} 13. Bxc7 {[%clk 0:01:49]}  Rbc8 {[%clk 0:02:25]} 14. Bg3 {[%clk 0:01:42]}  Na5 {[%clk 0:02:13]} 15. Rb5 {[%clk 0:01:40]}  Bxf3 {[%clk 0:02:07]} 16. Rxd5 {[%clk 0:01:38]}  Bxd5 {[%clk 0:02:08]} 17. Bf3 {[%clk 0:01:29]}  Rfd8 {[%clk 0:01:55]} 18. Bxd5 {[%clk 0:01:21]}  Rxd5 {[%clk 0:01:56]} 19. Re5 {[%clk 0:01:21]}  Rxe5 {[%clk 0:01:51]} 20. Bxe5 {[%clk 0:01:22]}  Rd8 {[%clk 0:01:38]} 21. Qg4 {[%clk 0:01:13]}  g6 {[%clk 0:01:30]} 22. Qf4 {[%clk 0:01:09]}  Nc4 {[%clk 0:01:23]} 23. Bf6 {[%clk 0:01:05]}  Bd6 {[%clk 0:01:17]} 24. Qe4 {[%clk 0:00:47]}  Rd7 {[%clk 0:01:16]} 25. h4 {[%clk 0:00:47]}  Bf8 {[%clk 0:01:01]} 26. h5 {[%clk 0:00:44]}  Nd6 {[%clk 0:01:02]} 27. Qg4 {[%clk 0:00:40]}  Nf5 {[%clk 0:01:01]} 28. hxg6 {[%clk 0:00:37]}  fxg6 {[%clk 0:01:02]} 29. Qe4 {[%clk 0:00:35]}  Kf7 {[%clk 0:01:02]} 30. Be5 {[%clk 0:00:35]}  h5 {[%clk 0:01:00]} 31. c4 {[%clk 0:00:34]}  Re7 {[%clk 0:00:47]} 32. c3 {[%clk 0:00:33]}  a6 {[%clk 0:00:44]} 33. Bf4 {[%clk 0:00:33]}  b6 {[%clk 0:00:33]} 34. Qc6 {[%clk 0:00:29]}  Bg7 {[%clk 0:00:26]} 35. Qxb6 {[%clk 0:00:28]}  Rd7 {[%clk 0:00:20]} 36. Qxa6 {[%clk 0:00:26]}  e5 {[%clk 0:00:17]} 37. Bxe5 {[%clk 0:00:24]}  Bxe5 {[%clk 0:00:17]} 38. dxe5 {[%clk 0:00:25]}  Rd1+ {[%clk 0:00:17]} 39. Kh2 {[%clk 0:00:26]}  Kg7 {[%clk 0:00:15]} 40. Qf6+ {[%clk 0:00:24]}  Kh6 {[%clk 0:00:14]} 41. e6 {[%clk 0:00:24]}  Re1 {[%clk 0:00:14]} 42. c5 {[%clk 0:00:22]}  h4 {[%clk 0:00:14]} 43. c6 {[%clk 0:00:19]}  Re2 {[%clk 0:00:14]} 44. c7 {[%clk 0:00:17]}  Rxf2 {[%clk 0:00:14]} 45. c8=Q {[%clk 0:00:16]}  Kh5 {[%clk 0:00:04]} 46. Qch8+ {[%clk 0:00:16]}  Kg4 {[%clk 0:00:04]} 47. Qxg6+ {[%clk 0:00:15]}  Kf4 {[%clk 0:00:05]} 48. Qxf5+ {[%clk 0:00:13]}  Kxf5 {[%clk 0:00:03]} 49. Qf8+ {[%clk 0:00:14]}  Kg4 {[%clk 0:00:04]} 50. Qxf2 {[%clk 0:00:14]}  h3 {[%clk 0:00:04]} 51. gxh3+ {[%clk 0:00:12]} 1-0


[Site "https://www.chess.com"]

[Event "Titled Tuesday Blitz July 20 2021"]
[White "Arabidze, Meri"]
[Black "Har-Zvi, Ronen"]
[WhiteFideId "13604040"]
[BlackFideId "2801485"]
[WhiteElo "2432"]
[BlackElo "2523"]
[Result "1-0"]
[Round "05"]
[TimeControl "180+1"]
[Date "2021.07.20"]
[WhiteClock "0:00:27"]
[BlackClock "0:01:33"]

1. Nf3 {[%clk 0:02:56]}  d5 {[%clk 0:02:58]} 2. g3 {[%clk 0:02:56]}  c6 {[%clk 0:02:58]} 3. Bg2 {[%clk 0:02:57]}  Nf6 {[%clk 0:02:58]} 4. O-O {[%clk 0:02:57]}  Bg4 {[%clk 0:02:59]} 5. b3 {[%clk 0:02:58]}  e6 {[%clk 0:02:59]} 6. Bb2 {[%clk 0:02:58]}  Nbd7 {[%clk 0:02:59]} 7. h3 {[%clk 0:02:56]}  Bh5 {[%clk 0:02:59]} 8. d4 {[%clk 0:02:56]}  Bd6 {[%clk 0:02:59]} 9. c4 {[%clk 0:02:55]}  O-O {[%clk 0:03:00]} 10. Nbd2 {[%clk 0:02:53]}  Re8 {[%clk 0:02:59]} 11. g4 {[%clk 0:02:48]}  Bg6 {[%clk 0:02:59]} 12. Ne5 {[%clk 0:02:45]}  Qe7 {[%clk 0:02:56]} 13. Nxg6 {[%clk 0:02:43]}  hxg6 {[%clk 0:02:55]} 14. e4 {[%clk 0:02:43]}  dxe4 {[%clk 0:02:54]} 15. Nxe4 {[%clk 0:02:44]}  Nxe4 {[%clk 0:02:54]} 16. Bxe4 {[%clk 0:02:45]}  Nf6 {[%clk 0:02:54]} 17. Bg2 {[%clk 0:02:45]}  Ba3 {[%clk 0:02:54]} 18. Bxa3 {[%clk 0:02:43]}  Qxa3 {[%clk 0:02:53]} 19. Qc2 {[%clk 0:02:35]}  Rad8 {[%clk 0:02:53]} 20. Rad1 {[%clk 0:02:35]}  Rd7 {[%clk 0:02:50]} 21. Rd2 {[%clk 0:02:34]}  Red8 {[%clk 0:02:50]} 22. Rfd1 {[%clk 0:02:34]}  g5 {[%clk 0:02:50]} 23. Qc3 {[%clk 0:02:28]}  Qe7 {[%clk 0:02:42]} 24. Qe3 {[%clk 0:02:27]}  e5 {[%clk 0:02:28]} 25. d5 {[%clk 0:02:05]}  cxd5 {[%clk 0:02:25]} 26. cxd5 {[%clk 0:02:06]}  Ne8 {[%clk 0:02:21]} 27. Qxa7 {[%clk 0:02:03]}  Nd6 {[%clk 0:02:20]} 28. Qe3 {[%clk 0:02:00]}  Rc7 {[%clk 0:02:18]} 29. Re2 {[%clk 0:01:57]}  f6 {[%clk 0:02:16]} 30. Be4 {[%clk 0:01:51]}  Rdc8 {[%clk 0:02:15]} 31. Bf5 {[%clk 0:01:47]}  Rc3 {[%clk 0:02:09]} 32. Bxc8 {[%clk 0:01:31]}  Rxe3 {[%clk 0:02:09]} 33. Be6+ {[%clk 0:01:31]}  Kh7 {[%clk 0:02:09]} 34. Rxe3 {[%clk 0:01:29]}  Qc7 {[%clk 0:02:09]} 35. b4 {[%clk 0:01:16]}  Qc2 {[%clk 0:02:08]} 36. Ree1 {[%clk 0:01:06]}  Qxa2 {[%clk 0:02:06]} 37. Rc1 {[%clk 0:01:06]}  Qa3 {[%clk 0:02:05]} 38. b5 {[%clk 0:00:52]}  Qb4 {[%clk 0:01:48]} 39. Red1 {[%clk 0:00:40]}  Qxb5 {[%clk 0:01:47]} 40. Bf5+ {[%clk 0:00:36]}  g6 {[%clk 0:01:47]} 41. Rc7+ {[%clk 0:00:33]}  Kh6 {[%clk 0:01:46]} 42. Be6 {[%clk 0:00:31]}  e4 {[%clk 0:01:33]} 43. Bg8 {[%clk 0:00:27]} 1-0


[Site "https://www.chess.com"]

[Event "Titled Tuesday Blitz July 20 2021"]
[White "Arnold, Ken"]
[Black "Mokshanov, Alexey"]
[WhiteFideId "2056836"]
[BlackFideId "24121657"]
[WhiteElo "2457"]
[BlackElo "2262"]
[Result "0-1"]
[Round "05"]
[TimeControl "180+1"]
[Date "2021.07.21"]
[WhiteClock "0:01:06"]
[BlackClock "0:01:30"]

1. d4 {[%clk 0:03:00]}  d5 {[%clk 0:02:53]} 2. c4 {[%clk 0:03:00]}  e6 {[%clk 0:02:53]} 3. Nf3 {[%clk 0:03:00]}  Nf6 {[%clk 0:02:52]} 4. cxd5 {[%clk 0:03:00]}  exd5 {[%clk 0:02:52]} 5. Nc3 {[%clk 0:03:01]}  c6 {[%clk 0:02:52]} 6. Bf4 {[%clk 0:03:01]}  Bd6 {[%clk 0:02:52]} 7. Bxd6 {[%clk 0:03:01]}  Qxd6 {[%clk 0:02:53]} 8. e3 {[%clk 0:03:02]}  Bf5 {[%clk 0:02:52]} 9. Bd3 {[%clk 0:03:02]}  Bxd3 {[%clk 0:02:53]} 10. Qxd3 {[%clk 0:03:03]}  O-O {[%clk 0:02:53]} 11. O-O {[%clk 0:03:03]}  Re8 {[%clk 0:02:53]} 12. Rab1 {[%clk 0:03:02]}  a5 {[%clk 0:02:51]} 13. a3 {[%clk 0:03:01]}  Nbd7 {[%clk 0:02:51]} 14. b4 {[%clk 0:03:00]}  axb4 {[%clk 0:02:51]} 15. axb4 {[%clk 0:03:01]}  b5 {[%clk 0:02:52]} 16. Nd2 {[%clk 0:02:53]}  Nb6 {[%clk 0:02:51]} 17. e4 {[%clk 0:02:48]}  dxe4 {[%clk 0:02:48]} 18. Ndxe4 {[%clk 0:02:44]}  Nxe4 {[%clk 0:02:48]} 19. Nxe4 {[%clk 0:02:44]}  Qd5 {[%clk 0:02:42]} 20. Nc5 {[%clk 0:02:38]}  h6 {[%clk 0:02:31]} 21. h3 {[%clk 0:02:34]}  Nc4 {[%clk 0:02:29]} 22. Ra1 {[%clk 0:02:24]}  Rad8 {[%clk 0:02:13]} 23. Ra6 {[%clk 0:02:20]}  Nb2 {[%clk 0:02:07]} 24. Qc3 {[%clk 0:02:12]}  Qxd4 {[%clk 0:02:06]} 25. Qxd4 {[%clk 0:02:10]}  Rxd4 {[%clk 0:02:07]} 26. Rxc6 {[%clk 0:02:10]}  Rxb4 {[%clk 0:02:06]} 27. Rb6 {[%clk 0:02:05]}  Nc4 {[%clk 0:02:03]} 28. Rb7 {[%clk 0:02:00]}  Nd6 {[%clk 0:01:53]} 29. Rb6 {[%clk 0:01:56]}  Rd4 {[%clk 0:01:52]} 30. Nb7 {[%clk 0:01:48]}  Nxb7 {[%clk 0:01:52]} 31. Rxb7 {[%clk 0:01:48]}  b4 {[%clk 0:01:52]} 32. Rc1 {[%clk 0:01:43]}  Rf4 {[%clk 0:01:43]} 33. f3 {[%clk 0:01:32]}  Re2 {[%clk 0:01:37]} 34. Rc8+ {[%clk 0:01:27]}  Kh7 {[%clk 0:01:37]} 35. Rcb8 {[%clk 0:01:27]}  Rc4 {[%clk 0:01:34]} 36. Rxb4 {[%clk 0:01:24]}  Rcc2 {[%clk 0:01:32]} 37. Rg4 {[%clk 0:01:23]}  f5 {[%clk 0:01:32]} 38. Rg3 {[%clk 0:01:21]}  f4 {[%clk 0:01:31]} 39. Rg4 {[%clk 0:01:20]}  g5 {[%clk 0:01:31]} 40. h4 {[%clk 0:01:16]}  Re1+ {[%clk 0:01:31]} 41. Kh2 {[%clk 0:01:15]}  Rcc1 {[%clk 0:01:32]} 42. Rb7+ {[%clk 0:01:06]}  Kg8 {[%clk 0:01:30]} 0-1


[Site "https://www.chess.com"]